bitfinex/quotes_SOLUSD_20240601
["timestamp","ask_amount","ask_price","bid_price","bid_amount"]
[1717235161375,2.2146,167.07,167.06,120.4729]
[1717235162450,2.2146,167.07,167.06,60.4729]
[1717235163357,2.2146,167.07,167.06,54.13]
[1717235163573,2.2146,167.07,167.06,114.13]
[1717235166777,2.2146,167.07,167.06,54.13]
[1717235171384,2.2147,167.06,167.04,113.79]
[1717235171680,2.2149,167.05,167.04,35.86]
[1717235171886,2.2149,167.05,167.02,75.43484215]
[1717235172061,8.8568,167.11,167.02,75.43484215]
[1717235172382,2.215,167.05,167.02,75.43484215]
[1717235172562,2.215,167.04,167.02,93.36484215]
[1717235173089,2.2149,167.05,167.02,86.91624215]
[1717235176082,2.2147,167.06,167.02,86.91624215]
[1717235177071,2.2147,167.06,167.03,8.98624215]
[1717235178171,2.2149,167.05,167.03,8.98624215]
[1717235179083,2.215,167.04,167.02,8.98624215]
[1717235179388,2.2149,167.05,167.03,8.98624215]
[1717235181291,2.2149,167.05,167.04,8.98624215]
[1717235181493,2.2149,167.05,167.03,8.98761384]
[1717235182174,2.215,167.04,167.01,44.90761384]
[1717235183293,2.2151,167.03,167.01,44.90761384]
[1717235184191,2.215,167.04,167.01,44.90761384]
[1717235185292,2.215,167.04,167.01,35.92]
[1717235188686,2.2151,167.03,167.01,35.92]
[1717235191322,2.215,167.04,167.01,35.92]
[1717235198913,8.8577,167.09,167.01,35.92]
[1717235199606,4.4293,167.07,167.01,35.92]
[1717235199913,2.2148,167.06,167.02,113.85]
[1717235200215,2.2148,167.06,167.02,120.0904]
[1717235202114,2.2148,167.06,167.02,113.85]
[1717235202298,2.2148,167.06,167.04,113.85]
[1717235218346,2.2149,167.05,167.04,113.85]
[1717235220142,2.2149,167.05,167.03,36.09]
[1717235220351,2.2149,167.05,167.03,35.92]
[1717235220947,2.2149,167.05,167.03,53.85]
[1717235224837,2.2149,167.05,167.02,60.0]
[1717235225038,2.2149,167.05,167.01,33.15823676]
[1717235225348,2.215,167.04,167.01,33.15823676]
[1717235226345,2.215,167.04,167.02,8.98785485]
[1717235226949,2.215,167.04,167.01,33.15825485]
[1717235227153,2.2149,167.05,167.01,33.15825485]
[1717235227354,2.2149,167.05,167.02,8.98785485]
[1717235232154,2.2149,167.05,167.01,69.07825485]
[1717235235160,4.4292,167.07,167.01,62.83785485]
[1717235235838,2.215,167.05,167.01,62.83785485]
[1717235236238,2.215,167.04,167.01,62.83785485]
[1717235239543,2.215,167.04,167.01,53.85]
[1717235239750,2.215,167.04,167.01,62.83861943]
[1717235240642,4.4292,167.07,167.01,8.98861943]
[1717235240838,2.2153,167.02,167.01,8.98861943]
[1717235241649,2.2153,167.02,167.0,0.2950352]
[1717235255679,2.2154,167.01,167.0,0.2950352]
[1717235272794,22.1542,167.01,167.0,0.2950352]
[1717235273090,13.2925,167.01,167.0,0.2950352]
[1717235276494,6.6462,167.01,167.0,0.2950352]
[1717235277276,13.2925,167.01,167.0,0.2950352]
[1717235284207,22.1542,167.01,167.0,0.2950352]
[1717235306913,6.6462,167.01,167.0,0.2950352]
[1717235308234,2.2154,167.01,167.0,22.5824352]
[1717235308911,2.2153,167.02,167.01,22.2874]
[1717235313840,2.2154,167.01,167.0,0.2950352]
[1717235314134,2.2154,167.01,167.0,6.4251352]
[1717235316031,2.2153,167.02,167.0,6.4251352]
[1717235316541,2.2154,167.01,167.0,6.4251352]
[1717235321753,2.2152,167.03,167.0,6.4251352]
[1717235322250,2.2153,167.02,167.0,6.4251352]
[1717235323449,2.2154,167.01,167.0,6.4251352]
[1717235325345,2.2153,167.02,167.0,6.4251352]
[1717235326854,2.2154,167.01,167.0,0.2950352]
[1717235327429,2.2153,167.02,167.0,0.2950352]
[1717235331754,2.2154,167.01,167.0,0.2950352]
[1717235335532,2.2153,167.02,167.0,0.2950352]
[1717235335958,2.2154,167.01,167.0,0.2950352]
[1717235341255,2.2153,167.02,167.0,0.2950352]
[1717235341962,2.2154,167.01,167.0,0.2950352]
[1717235348956,6.6462,167.01,167.0,0.2950352]
[1717235382880,13.2925,167.01,167.0,0.2950352]
[1717235401513,6.6462,167.01,167.0,0.2950352]
[1717235412323,2.2154,167.01,167.0,23.2039352]
[1717235413218,2.2151,167.04,167.0,54.1450352]
[1717235413408,2.2151,167.03,167.02,22.9089]
[1717235413611,2.215,167.04,167.03,6.4556]
[1717235413811,2.215,167.04,167.03,22.9089]
[1717235415406,2.215,167.04,167.03,6.4556]
[1717235419331,2.215,167.04,167.0,54.1450352]
[1717235419521,2.2154,167.01,167.0,23.2039352]
[1717235430624,2.2153,167.02,167.0,23.2039352]
[1717235430936,2.2153,167.02,167.0,16.7483352]
[1717235431131,2.2153,167.02,167.01,6.0862]
[1717235442133,2.2153,167.02,167.01,21.8227]
[1717235443151,2.2153,167.02,167.01,6.0862]
[1717235443651,2.2153,167.02,167.01,136.6145]
[1717235443829,2.2153,167.02,167.01,136.7845]
[1717235444158,2.2153,167.02,167.01,76.6145]
[1717235444332,2.2153,167.02,167.01,76.4445]
[1717235445345,4.4296,167.06,167.01,76.4445]
[1717235445551,2.2153,167.02,167.01,76.4445]
[1717235451663,2.2153,167.02,167.01,136.4445]
[1717235451960,2.2151,167.03,167.01,136.4445]
[1717235454540,2.2153,167.02,167.01,59.9362]
[1717235458171,2.2153,167.02,167.01,119.9362]
[1717235475476,2.2153,167.02,167.01,53.85]
[1717235475882,2.2154,167.01,167.0,0.2950352]
[1717235488396,2.2153,167.02,167.0,0.2950352]
[1717235488592,2.2154,167.01,167.0,0.2950352]
[1717235500895,22.1542,167.01,167.0,0.2950352]
[1717235531523,13.2925,167.01,167.0,0.2950352]
[1717235574660,22.1542,167.01,167.0,0.2950352]
[1717235579564,6.6462,167.01,167.0,0.2950352]
[1717235580559,2.2154,167.01,167.0,0.2950352]
[1717235582269,2.2154,167.01,167.0,6.4445352]
[1717235588275,2.2154,167.01,167.0,0.2950352]
[1717235626492,4.4294,167.07,167.0,0.2950352]
[1717235626830,4.4297,167.06,167.0,0.2950352]
[1717235626993,2.2154,167.01,167.0,0.2950352]
[1717235627811,4.4289,167.09,167.01,6.3299]
[1717235628022,4.429,167.08,167.01,6.3299]
[1717235628394,2.2152,167.03,167.01,6.3299]
[1717235628595,2.2152,167.03,167.02,6.3299]
[1717235628801,4.429,167.08,167.02,6.3299]
[1717235629800,2.2151,167.04,167.0,114.1550352]
[1717235630011,2.2151,167.04,167.03,6.3299]
[1717235643134,2.2151,167.03,167.02,16.4358]
[1717235643334,2.2153,167.02,167.0,114.1550352]
[1717235643715,2.2154,167.01,167.0,0.2950352]
[1717235645035,2.2153,167.02,167.0,0.2950352]
[1717235646236,2.215,167.05,167.01,6.3262]
[1717235646456,6.6423,167.11,167.01,58.651]
[1717235646728,2.2149,167.05,167.01,76.581]
[1717235647434,2.2151,167.04,167.01,76.581]
[1717235653248,2.2151,167.04,167.03,35.93]
[1717235674446,2.2151,167.04,167.03,41.9387]
[1717235683255,2.2151,167.04,167.03,35.93]
[1717235701557,8.8582,167.08,167.0,36.2250352]
[1717235701959,2.2153,167.03,167.0,36.2250352]
[1717235703153,2.2153,167.02,167.0,36.2250352]
[1717235703773,2.2152,167.03,167.0,36.2250352]
[1717235708270,4.4295,167.06,167.0,0.2950352]
[1717235708477,2.9927541,167.14,167.0,0.2950352]
[1717235708679,1.89792687,167.1,167.0,0.2950352]
[1717235708872,2.2154,167.02,167.0,0.2950352]
[1717235709361,2.2154,167.01,167.0,0.2950352]
[1717235715007,8.8588,167.07,167.01,35.93]
[1717235715304,8.8588,167.07,167.01,53.86]
[1717235715479,2.2151,167.04,167.01,53.86]
[1717235716011,2.2151,167.03,167.01,53.86]
[1717235716679,2.215,167.04,167.01,53.86]
[1717235720783,2.215,167.04,167.01,60.1929]
[1717235723112,2.215,167.04,167.02,0.57842005]
[1717235725408,21.69152807,167.08,167.02,120.58242005]
[1717235725613,4.4292,167.08,167.02,120.58242005]
[1717235727610,2.2148,167.06,167.03,42.074]
[1717235727796,2.2148,167.06,167.04,0.57835079]
[1717235728203,2.2149,167.05,167.04,0.57835079]
[1717235736040,2.2149,167.05,167.03,42.074]
[1717235739542,2.2148,167.06,167.03,42.074]
[1717235740236,8.8554,167.13,167.06,60.0]
[1717235740538,13.55002407,167.14,167.06,60.0]
[1717235740539,2.2142,167.11,167.08,42.074]
[1717235743344,2.2142,167.11,167.09,17.93]
[1717235743550,2.2142,167.11,167.09,53.86]
[1717235744629,2.2139,167.13,167.09,53.86]
[1717235744828,2.2139,167.13,167.09,60.2943]
[1717235745238,2.2139,167.12,167.09,60.2943]
[1717235757254,11.067,167.17,167.1,6.4343]
[1717235757444,2.2138,167.13,167.1,6.4343]
[1717235758035,2.2139,167.12,167.1,6.4343]
[1717235759158,2.2138,167.13,167.1,6.4343]
[1717235771466,2.2137,167.14,167.1,6.4343]
[1717235779877,2.2139,167.13,167.1,6.4343]
[1717235780089,4.4274,167.14,167.06,102.3791]
[1717235780382,2.2145,167.08,167.06,6.4691]
[1717235780979,2.2144,167.09,167.06,6.4691]
[1717235787981,2.2144,167.09,167.06,22.5062]
[1717235788374,2.2142,167.1,167.07,22.3587]
[1717235790379,2.2143,167.09,167.07,22.3587]
[1717235790585,2.2142,167.1,167.08,15.7775]
[1717235790792,2.2142,167.1,167.09,6.5812]
[1717235792870,2.2143,167.09,167.08,15.7775]
[1717235793288,2.2143,167.09,167.06,53.84]
[1717235793488,2.2143,167.09,167.07,6.5812]
[1717235796295,2.2145,167.08,167.07,6.5812]
[1717235803597,21.68368048,167.13,167.07,6.5812]
[1717235804097,2.2144,167.09,167.07,6.5812]
[1717235818113,2.2144,167.09,167.06,69.6175]
[1717235819907,2.2142,167.1,167.06,75.6417]
[1717235821817,2.2143,167.09,167.06,75.6417]
[1717235822815,2.2142,167.1,167.06,59.8642]
[1717235823016,2.2142,167.1,167.07,113.84]
[1717235823313,2.2142,167.1,167.07,119.8642]
[1717235830425,2.2142,167.1,167.07,59.8642]
[1717235831023,2.2142,167.1,167.07,119.8642]
[1717235831823,2.2142,167.1,167.07,59.8642]
[1717235832623,2.2142,167.1,167.07,53.84]
[1717235832921,2.2142,167.1,167.06,35.91]
[1717235833945,17.25500269,167.13,167.04,35.91]
[1717235834228,2.2145,167.08,167.04,35.91]
[1717235838612,2.0945,167.08,167.04,35.91]
[1717235851052,17.25787118,167.13,166.98,6.3383]
[1717235851334,4.4294,167.07,167.0,60.2950352]
[1717235851521,2.215,167.04,167.0,60.2950352]
[1717235851934,2.215,167.04,167.0,96.2050352]
[1717235852132,2.2149,167.05,167.0,96.2050352]
[1717235854739,2.215,167.04,167.0,114.1350352]
[1717235858045,2.215,167.04,167.0,54.1350352]
[1717235858344,2.215,167.04,167.0,114.1350352]
[1717235858539,2.215,167.04,167.0,0.2950352]
[1717235858844,2.215,167.04,167.0,96.2050352]
[1717235863550,2.215,167.04,167.0,102.5385352]
[1717235865341,2.2149,167.06,167.02,95.91]
[1717235865550,2.2149,167.06,167.02,102.2435]
[1717235868555,2.2149,167.05,167.02,102.2435]
[1717235870541,2.2147,167.06,167.03,6.3335]
[1717235870746,2.2147,167.06,167.03,42.2435]
[1717235877358,2.2146,167.07,167.03,42.2435]
[1717235882071,2.2147,167.06,167.03,42.2435]
[1717235885454,2.2146,167.07,167.03,42.2435]
[1717235896672,2.2146,167.07,167.02,16.4575]
[1717235896878,2.2147,167.06,167.0,96.2050352]
[1717235898579,2.2147,167.06,167.0,114.1350352]
[1717235898768,2.2146,167.07,167.03,6.4809]
[1717235901181,2.2146,167.07,167.01,36.08]
[1717235901373,2.2146,167.07,167.01,35.91]
[1717235901578,2.2146,167.07,167.02,95.91]
[1717235901778,2.2146,167.07,167.03,6.4809]
[1717235905888,2.2147,167.06,167.03,6.4809]
[1717235913795,2.2147,167.06,167.02,111.5781]
[1717235913996,2.2147,167.06,167.02,95.91]
[1717235920481,21.68689363,167.1,167.02,95.91]
[1717235920706,2.2146,167.07,167.02,95.91]
[1717235923305,2.2147,167.06,167.02,95.91]
[1717235927722,2.2146,167.07,167.02,95.91]
[1717235929414,2.2146,167.07,167.01,35.91]
[1717235934117,2.2148,167.06,167.01,35.91]
[1717235934416,2.2148,167.06,167.0,60.2950352]
[1717235934417,2.2151,167.04,167.0,0.2950352]
[1717235934615,4.4292,167.08,167.0,0.2950352]
[1717235934820,2.215,167.04,167.0,0.2950352]
[1717235939922,2.2152,167.03,167.0,0.2950352]
[1717235954635,2.215,167.04,167.0,0.2950352]
[1717235960443,2.2151,167.03,167.0,0.2950352]
[1717235965849,2.2151,167.03,167.0,6.7704352]
[1717235971433,2.2151,167.03,167.01,6.4754]
[1717235977041,2.2151,167.03,167.01,66.4754]
[1717235978154,2.2151,167.03,167.01,82.2675]
[1717235980148,2.215,167.04,167.02,6.4754]
[1717235981755,2.2149,167.05,167.02,42.3854]
[1717235981963,2.2149,167.05,167.03,6.4754]
[1717235985864,17.26147738,167.08,167.06,35.91]
[1717235986164,2.2145,167.08,167.06,57.6122]
[1717235987141,2.2144,167.09,167.06,57.6122]
[1717235987343,2.2144,167.09,167.07,6.0929]
[1717235990276,2.2144,167.09,167.07,111.5193]
[1717235990566,2.2142,167.1,167.09,6.0929]
[1717235991461,2.2142,167.1,167.09,66.0929]
[1717235991664,2.2141,167.11,167.09,66.0929]
[1717235991885,2.2139,167.13,167.1,6.0929]
[1717235992167,2.214,167.12,167.1,6.0929]
[1717235995901,4.4273,167.15,167.08,35.91]
[1717235996095,23.89480978,167.16,167.08,35.91]
[1717235996402,2.2142,167.1,167.08,35.91]
[1717235997004,2.2142,167.1,167.07,35.91]
[1717235997187,2.2142,167.1,167.07,42.0029]
[1717235999413,2.2141,167.11,167.07,42.0029]
[1717236001698,2.2142,167.1,167.07,42.0029]
[1717236001898,2.2142,167.1,167.06,60.0]
[1717236002107,2.2142,167.1,167.04,35.91]
[1717236002316,2.2142,167.1,167.05,0.17]
[1717236003284,2.2142,167.1,167.04,35.91]
[1717236003611,2.2142,167.1,167.05,6.4077]
[1717236003798,2.2142,167.1,167.05,42.3177]
[1717236004291,2.2143,167.09,167.05,42.3177]
[1717236004610,2.2143,167.09,167.05,35.91]
[1717236005303,2.2143,167.09,167.04,35.91]
[1717236005693,11.0685,167.14,167.01,6.4077]
[1717236005694,6.6411,167.14,167.01,66.4077]
[1717236006006,2.2147,167.07,167.01,102.3177]
[1717236006378,2.2147,167.07,167.01,42.3177]
[1717236007482,2.2148,167.06,167.01,42.3177]
[1717236014197,2.2148,167.06,167.0,36.2050352]
[1717236017298,4.4283,167.11,167.0,36.2050352]
[1717236017502,2.2146,167.07,167.02,35.91]
[1717236017697,2.2145,167.08,167.02,35.91]
[1717236018432,2.2144,167.09,167.05,60.0]
[1717236018727,2.2142,167.1,167.05,60.0]
[1717236019020,2.2142,167.1,167.05,66.4077]
[1717236022230,2.2142,167.1,167.05,6.4077]
[1717236022428,2.2142,167.1,167.03,95.91]
[1717236022925,2.2143,167.09,167.03,95.91]
[1717236024939,2.2142,167.11,167.03,95.91]
[1717236025225,2.2142,167.1,167.03,95.91]
[1717236027004,2.2142,167.1,167.05,95.91]
[1717236029335,2.2142,167.1,167.05,35.91]
[1717236030614,2.2142,167.1,167.04,35.91]
[1717236031927,2.2142,167.1,167.05,95.91]
[1717236033016,2.2141,167.11,167.05,95.91]
[1717236033512,2.2142,167.1,167.05,95.91]
[1717236037352,2.2141,167.11,167.05,95.91]
[1717236043845,2.2142,167.1,167.05,95.91]
[1717236045427,2.2142,167.1,167.07,95.91]
[1717236057054,2.2142,167.1,167.04,0.17]
[1717236057055,2.2142,167.1,167.06,35.91]
[1717236057957,2.2144,167.09,167.06,35.91]
[1717236059235,2.2144,167.09,167.03,17.93]
[1717236059236,2.2147,167.07,167.03,35.91]
[1717236059835,2.2147,167.07,167.03,95.91]
[1717236060156,2.2145,167.08,167.03,95.91]
[1717236060337,2.2144,167.09,167.03,95.91]
[1717236060544,2.2144,167.09,167.05,95.91]
[1717236065058,2.2141,167.11,167.07,95.91]
[1717236065363,11.0681,167.15,167.07,95.91]
[1717236065364,2.2143,167.1,167.07,95.91]
[1717236066183,2.2143,167.1,167.06,35.91]
[1717236066953,2.2144,167.09,167.06,35.91]
[1717236068549,2.2142,167.1,167.06,35.91]
[1717236071269,2.2144,167.09,167.05,35.91]
[1717236071478,2.2144,167.09,167.05,95.91]
[1717236071653,2.2142,167.1,167.05,95.91]
[1717236072672,2.2141,167.11,167.05,95.91]
[1717236073876,2.2141,167.11,167.07,95.91]
[1717236076477,2.2142,167.1,167.06,35.91]
[1717236081580,2.2141,167.11,167.06,35.91]
[1717236082274,4.4276,167.13,167.05,35.91]
[1717236082579,2.2144,167.09,167.05,35.91]
[1717236083378,2.2144,167.09,167.04,35.91]
[1717236085679,2.2144,167.09,167.03,35.91]
[1717236087893,2.2144,167.09,167.06,35.91]
[1717236088367,2.2142,167.1,167.06,35.91]
[1717236090074,2.2143,167.09,167.06,35.91]
[1717236094991,2.2145,167.08,167.06,35.91]
[1717236098996,2.2144,167.09,167.06,35.91]
[1717236114718,2.2142,167.1,167.08,35.91]
[1717236114922,4.4276,167.13,167.08,35.91]
[1717236115788,2.2143,167.1,167.08,35.91]
[1717236120508,6.6395,167.19,167.12,95.91]
[1717236120809,67.65953761,167.35,167.12,95.91]
[1717236120810,2.2135,167.16,167.12,95.91]
[1717236121611,2.9903426,167.27,167.12,95.91]
[1717236121803,2.2135,167.16,167.12,95.91]
[1717236123289,5.51,167.13,167.12,95.91]
[1717236124227,2.2135,167.16,167.12,95.91]
[1717236124521,5.51,167.13,167.12,95.91]
[1717236128523,2.2135,167.16,167.12,95.91]
[1717236132932,2.2136,167.15,167.12,35.91]
[1717236133106,2.2138,167.14,167.1,35.92]
[1717236133435,2.2138,167.13,167.1,35.92]
[1717236133740,2.2137,167.14,167.1,35.92]
[1717236134028,2.2137,167.14,167.09,35.92]
[1717236134800,2.2137,167.14,167.1,95.92]
[1717236140934,2.2137,167.14,167.1,35.92]
[1717236141137,2.2137,167.14,167.09,113.85]
[1717236141337,2.2137,167.14,167.09,53.85]
[1717236141543,2.2137,167.14,167.09,113.85]
[1717236141718,2.2138,167.13,167.09,113.85]
[1717236145649,2.2137,167.14,167.09,120.0114]
[1717236147359,2.2137,167.14,167.09,113.85]
[1717236148460,2.2138,167.13,167.09,113.85]
[1717236149756,2.2137,167.14,167.09,113.85]
[1717236153658,2.2138,167.13,167.09,113.85]
[1717236155559,2.2138,167.13,167.09,95.92]
[1717236155862,2.2138,167.13,167.08,36.09]
[1717236157262,4.4269,167.16,167.08,35.92]
[1717236157564,2.214,167.12,167.08,35.92]
[1717236162551,2.214,167.12,167.09,95.92]
[1717236163368,2.2138,167.13,167.09,95.92]
[1717236170370,2.2138,167.13,167.09,35.92]
[1717236170970,2.214,167.12,167.09,35.92]
[1717236171467,2.214,167.12,167.08,35.92]
[1717236180579,9.89991144,167.23,167.06,35.92]
[1717236180778,17.27340226,167.24,167.06,35.92]
[1717236180779,2.2143,167.09,167.06,35.92]
[1717236181089,5.51,167.07,167.06,35.92]
[1717236181699,5.51,167.07,167.04,35.92]
[1717236181890,2.2143,167.09,167.04,35.92]
[1717236186696,2.2145,167.08,167.04,35.92]
[1717236187281,4.4277,167.13,167.03,77.93]
[1717236187282,5.51,167.05,167.03,35.92]
[1717236187596,5.51,167.04,167.03,35.92]
[1717236188178,2.2146,167.07,167.03,35.92]
[1717236188388,2.2146,167.07,167.03,95.92]
[1717236190098,5.51,167.06,167.03,95.92]
[1717236191899,2.2146,167.07,167.03,95.92]
[1717236196301,5.51,167.04,167.03,95.92]
[1717236198001,4.4282,167.11,167.03,95.92]
[1717236198189,2.2147,167.06,167.03,95.92]
[1717236201511,2.2146,167.07,167.03,95.92]
[1717236202911,2.2146,167.07,167.03,102.1798]
[1717236206112,2.2146,167.07,167.03,117.5972]
[1717236207414,2.2145,167.08,167.06,35.92]
[1717236207608,5.51,167.07,167.06,35.92]
[1717236214910,2.2145,167.08,167.06,35.92]
[1717236215108,2.2144,167.09,167.06,35.92]
[1717236217421,2.2145,167.08,167.06,35.92]
[1717236221618,2.2145,167.08,167.05,35.92]
[1717236224328,2.2145,167.08,167.05,95.92]
[1717236230138,2.2145,167.08,167.05,35.92]
[1717236231332,2.2145,167.08,167.05,95.92]
[1717236231536,2.2143,167.09,167.05,102.2753]
[1717236231841,2.2143,167.09,167.05,35.92]
[1717236232727,2.2143,167.09,167.04,36.09]
[1717236238651,2.2143,167.09,167.04,35.92]
[1717236238822,5.51,167.12,167.02,35.92]
[1717236238823,6.6423,167.11,167.02,35.92]
[1717236239149,2.2146,167.07,167.02,35.92]
[1717236239768,2.2147,167.07,167.02,35.92]
[1717236240562,12.96246368,167.18,167.07,95.92]
[1717236240852,2.2139,167.13,167.07,95.92]
[1717236241049,2.214,167.12,167.07,95.92]
[1717236241253,5.51,167.1,167.07,95.92]
[1717236241636,4.4269,167.16,167.07,95.92]
[1717236242448,2.214,167.12,167.07,95.92]
[1717236242945,2.2141,167.11,167.07,95.92]
[1717236243948,2.2141,167.11,167.07,102.0467]
[1717236245147,4.4269,167.16,167.07,102.0467]
[1717236245148,2.214,167.12,167.07,102.0467]
[1717236245553,2.214,167.12,167.07,118.4542]
[1717236245861,5.51,167.1,167.07,118.4542]
[1717236247653,2.2138,167.13,167.09,95.92]
[1717236247835,2.2138,167.13,167.09,102.0467]
[1717236250233,2.2139,167.12,167.09,42.0467]
[1717236250443,5.51,167.1,167.08,35.92]
[1717236250653,2.2139,167.12,167.08,35.92]
[1717236250833,2.2139,167.12,167.08,42.3644]
[1717236252751,15.4928,167.18,167.08,35.92]
[1717236252954,15.4928,167.18,167.06,35.92]
[1717236252955,9.63128523,167.18,167.06,35.92]
[1717236253258,2.99148523,167.17,167.06,35.92]
[1717236253442,2.2141,167.12,167.06,35.92]
[1717236254044,2.2141,167.12,167.05,36.26]
[1717236254257,2.2141,167.12,167.06,0.34]
[1717236256334,2.2138,167.13,167.06,0.34]
[1717236258233,5.51,167.08,167.05,95.92]
[1717236258445,2.214,167.12,167.05,95.92]
[1717236259233,2.2141,167.11,167.05,95.92]
[1717236260564,7.7239,167.12,167.05,95.92]
[1717236262747,2.2139,167.12,167.05,95.92]
[1717236263458,0.34,167.19,167.05,102.3393]
[1717236263649,2.2142,167.1,167.05,102.3393]
[1717236264639,2.214,167.12,167.05,102.3393]
[1717236271561,2.214,167.12,167.07,102.4615]
[1717236276973,2.2141,167.11,167.07,42.4615]
[1717236277568,5.51,167.09,167.07,42.4615]
[1717236278476,4.4274,167.14,167.07,42.4615]
[1717236278651,4.4274,167.14,167.06,35.92]
[1717236279075,2.2142,167.11,167.06,35.92]
[1717236280068,2.2142,167.1,167.06,35.92]
[1717236281461,2.2141,167.11,167.06,35.92]
[1717236281763,2.2141,167.11,167.06,42.4615]
[1717236282293,7.7239,167.12,167.06,42.4615]
[1717236282454,2.2139,167.12,167.06,42.4615]
[1717236283577,2.2139,167.12,167.05,60.0]
[1717236283578,2.2139,167.12,167.07,117.6276]
[1717236284472,2.2138,167.13,167.07,111.0861]
[1717236285083,2.2137,167.14,167.07,111.0861]
[1717236292273,2.2137,167.14,167.09,60.0]
[1717236292476,2.2137,167.14,167.1,21.8839]
[1717236292683,2.2137,167.14,167.11,6.3748]
[1717236298096,9.936,167.2,167.12,42.2948]
[1717236299702,2.2135,167.16,167.12,42.2948]
[1717236301303,2.2135,167.16,167.13,6.3748]
[1717236306587,6.90822017,167.24,167.13,102.2948]
[1717236306922,2.213,167.19,167.13,102.2948]
[1717236308011,2.213,167.19,167.15,95.92]
[1717236308229,2.213,167.19,167.16,6.2193]
[1717236308392,6.90822017,167.24,167.16,6.2193]
[1717236308701,2.213,167.2,167.16,6.2193]
[1717236310420,2.213,167.2,167.16,51.9443]
[1717236310720,2.213,167.2,167.17,22.2436]
[1717236312420,2.213,167.2,167.18,42.1393]
[1717236313618,4.4247,167.25,167.18,42.1393]
[1717236314117,4.4247,167.25,167.18,35.92]
[1717236314414,4.4247,167.25,167.18,42.1393]
[1717236314415,2.2127,167.22,167.18,42.1393]
[1717236314602,2.2127,167.22,167.19,6.2193]
[1717236315522,16.5694,167.28,167.19,6.2193]
[1717236315523,2.2125,167.23,167.19,42.1393]
[1717236317016,2.2126,167.22,167.19,42.1393]
[1717236317317,2.2128,167.21,167.19,42.1393]
[1717236319124,2.2126,167.22,167.19,42.1393]
[1717236320522,2.2125,167.23,167.19,42.1393]
[1717236320721,2.2125,167.23,167.19,58.1636]
[1717236323223,2.2126,167.22,167.16,35.92]
[1717236326228,2.2125,167.23,167.19,42.0787]
[1717236326411,2.2124,167.24,167.19,52.1341]
[1717236326612,2.2124,167.24,167.2,6.1587]
[1717236327117,4.4236,167.29,167.21,16.2141]
[1717236327729,2.2124,167.24,167.21,16.2141]
[1717236328625,2.2124,167.24,167.21,22.3728]
[1717236329027,2.2124,167.24,167.22,6.1587]
[1717236329609,5.51,167.23,167.22,6.1587]
[1717236330120,2.2122,167.25,167.22,6.1587]
[1717236330427,2.2122,167.25,167.22,16.2141]
[1717236330626,2.2122,167.25,167.22,22.3728]
[1717236333609,2.2122,167.25,167.23,22.3728]
[1717236334125,2.2122,167.25,167.23,6.1587]
[1717236334714,2.2122,167.25,167.19,52.1341]
[1717236335019,2.2122,167.25,167.19,58.2928]
[1717236338114,4.424,167.27,167.19,42.0787]
[1717236338417,7.41362658,167.27,167.17,35.92]
[1717236339129,2.2126,167.23,167.17,35.92]